bitfinex-derivatives/quotes_BTCF0:USTF0_20241022
["timestamp","ask_amount","ask_price","bid_price","bid_amount"]
[1729593017108,0.435286,67163.0,67162.0,0.214487]
[1729593017109,0.3608,67163.0,67162.0,0.214487]
[1729593017505,0.001,67163.0,67162.0,0.5008]
[1729593017803,0.001,67163.0,67162.0,0.14]
[1729593018011,0.001,67163.0,67162.0,0.5008]
[1729593018218,0.074484,67165.0,67162.0,0.5008]
[1729593018519,0.001,67163.0,67162.0,0.5008]
[1729593018708,0.001,67163.0,67162.0,0.575287]
[1729593018909,0.0104,67172.0,67162.0,0.94748]
[1729593019105,0.0104,67176.0,67171.0,0.5008]
[1729593019311,0.07670525,67177.0,67175.0,0.14]
[1729593019716,0.074472,67176.0,67175.0,0.14]
[1729593021115,0.075472,67176.0,67175.0,0.14]
[1729593022317,0.075472,67176.0,67175.0,0.141]
[1729593022518,0.075472,67176.0,67175.0,0.001]
[1729593023616,0.074472,67176.0,67175.0,0.002]
[1729593024512,0.074472,67176.0,67175.0,0.001]
[1729593024811,0.074472,67176.0,67175.0,0.002]
[1729593025119,0.074472,67176.0,67175.0,0.001]
[1729593025318,0.074472,67176.0,67175.0,0.002]
[1729593025616,0.074472,67176.0,67175.0,0.142]
[1729593026613,0.36303425,67177.0,67175.0,0.27535444]
[1729593026811,0.36303425,67177.0,67176.0,0.13335344]
[1729593027314,0.36303425,67177.0,67176.0,0.05888144]
[1729593027715,0.00223425,67177.0,67175.0,0.141]
[1729593028111,0.00223425,67177.0,67175.0,0.14]
[1729593028316,0.00223425,67177.0,67175.0,0.15542393]
[1729593029713,0.084865,67183.0,67178.0,0.074469]
[1729593030015,0.084865,67183.0,67182.0,0.14]
[1729593032026,0.084865,67183.0,67182.0,0.141]
[1729593032513,0.084865,67183.0,67182.0,0.142]
[1729593033218,0.084865,67183.0,67182.0,0.001]
[1729593033408,0.224865,67183.0,67182.0,0.002]
[1729593033809,0.224865,67183.0,67182.0,0.001]
[1729593034008,0.224865,67183.0,67171.0,0.19881882]
[1729593034216,0.43527,67178.0,67177.0,0.14]
[1729593034409,0.07447,67178.0,67177.0,0.14]
[1729593035523,0.43527,67178.0,67177.0,0.14]
[1729593036815,0.43527,67178.0,67177.0,0.141]
[1729593037226,0.43527,67178.0,67177.0,0.142]
[1729593038317,0.07447,67178.0,67177.0,0.142]
[1729593038620,0.43527,67178.0,67177.0,0.002]
[1729593038809,0.57527,67178.0,67177.0,0.002]
[1729593041324,0.59015065,67178.0,67177.0,0.002]
[1729593041718,1.03671065,67178.0,67177.0,0.002]
[1729593042326,0.074482,67167.0,67166.0,0.01484431]
[1729593042516,0.14,67167.0,67161.0,0.3608]
[1729593042719,0.14,67167.0,67162.0,0.14]
[1729593042915,0.14,67163.0,67157.0,0.0075]
[1729593043318,0.074492,67158.0,67157.0,0.0075]
[1729593044325,0.074492,67158.0,67157.0,0.0165]
[1729593046824,0.076492,67158.0,67157.0,0.0075]
[1729593052221,0.09195874,67158.0,67157.0,0.0075]
[1729593056515,0.076492,67158.0,67157.0,0.1475]
[1729593057120,0.076492,67158.0,67157.0,0.0075]
[1729593057720,0.076492,67158.0,67154.0,0.04414441]
[1729593057721,0.523212,67158.0,67154.0,0.04414441]
[1729593057922,0.14,67155.0,67140.0,0.0138]
[1729593058229,0.214511,67141.0,67140.0,0.0138]
[1729593059026,0.214511,67141.0,67140.0,0.0278]
[1729593059527,0.074511,67141.0,67140.0,0.0278]
[1729593059831,0.074511,67141.0,67140.0,0.0138]
[1729593060027,0.075511,67141.0,67140.0,0.0138]
[1729593060226,0.075511,67141.0,67140.0,0.0148]
[1729593060428,0.001,67141.0,67140.0,0.0148]
[1729593060733,0.001,67141.0,67140.0,0.089312]
[1729593060927,0.001,67141.0,67140.0,0.14813082]
[1729593061124,0.3608,67153.0,67152.0,0.074498]
[1729593061324,0.3608,67153.0,67152.0,0.214498]
[1729593062228,0.00223469,67155.0,67154.0,0.074496]
[1729593062426,0.00223469,67155.0,67154.0,0.49412987]
[1729593062622,0.00223469,67155.0,67154.0,0.435296]
[1729593063323,0.00523469,67155.0,67154.0,0.435296]
[1729593063722,0.00823469,67155.0,67154.0,0.435296]
[1729593065033,0.00823469,67155.0,67154.0,0.3608]
[1729593065229,0.07972969,67155.0,67154.0,0.3608]
[1729593065436,0.07872969,67155.0,67154.0,0.3608]
[1729593066136,0.07772969,67155.0,67154.0,0.3608]
[1729593066334,0.00523469,67155.0,67154.0,0.3608]
[1729593067039,0.00323469,67155.0,67154.0,0.3608]
[1729593067228,0.00523469,67155.0,67154.0,0.3608]
[1729593067430,0.00523469,67155.0,67154.0,0.435296]
[1729593068030,0.00523469,67155.0,67154.0,0.50889781]
[1729593068233,0.00523469,67155.0,67154.0,0.435296]
[1729593068637,0.074473,67176.0,67154.0,0.435296]
[1729593068638,0.074474,67174.0,67154.0,1.99511657]
[1729593068841,0.3608,67179.0,67173.0,0.14]
[1729593069040,0.074472,67177.0,67173.0,0.05888997]
[1729593069243,0.3608,67179.0,67173.0,0.05888997]
[1729593069453,0.435269,67179.0,67176.0,0.05888997]
[1729593069739,0.435269,67179.0,67175.0,0.05888997]
[1729593069949,0.0022334,67181.0,67176.0,0.05888997]
[1729593070238,0.0022334,67181.0,67177.0,0.05888997]
[1729593070536,0.0022334,67181.0,67179.0,0.14]
[1729593070940,0.074467,67180.0,67179.0,0.14]
[1729593071141,0.07447,67178.0,67175.0,0.19888997]
[1729593071445,0.07447,67178.0,67175.0,0.14]
[1729593071943,0.074474,67174.0,67173.0,0.001]
[1729593072130,0.074474,67174.0,67168.0,0.05888997]
[1729593072330,0.074478,67171.0,67166.0,0.05888997]
[1729593072545,0.074479,67170.0,67166.0,0.05888997]
[1729593073036,0.3608,67167.0,67165.0,0.0008]
[1729593073245,0.14,67166.0,67162.0,0.13333752]
[1729593073442,0.14,67166.0,67162.0,0.05885052]
[1729593073634,0.074486,67164.0,67161.0,0.05885052]
[1729593073834,0.14,67166.0,67161.0,0.05885052]
[1729593074037,0.074486,67163.0,67161.0,0.05885052]
[1729593074741,0.074485,67165.0,67161.0,0.05885052]
[1729593074945,0.074485,67165.0,67161.0,0.13333852]
[1729593075137,0.14,67166.0,67161.0,0.074488]
[1729593075438,0.14,67166.0,67159.0,0.14223338]
[1729593075646,0.14,67166.0,67163.0,0.074485]
[1729593076238,0.3608,67167.0,67164.0,0.074485]
[1729593076440,0.3608,67167.0,67163.0,0.14]
[1729593076441,0.3608,67167.0,67165.0,0.074484]
[1729593076737,0.3608,67167.0,67166.0,0.214483]
[1729593077130,0.3608,67178.0,67166.0,0.214483]
[1729593077435,0.3608,67178.0,67177.0,0.074471]
[1729593077637,0.0022334,67181.0,67176.0,0.14]
[1729593078044,0.14,67180.0,67176.0,0.14]
[1729593078344,0.14,67180.0,67178.0,0.074469]
[1729593078543,0.0022334,67181.0,67179.0,0.074467]
[1729593078741,0.0022334,67181.0,67180.0,0.214467]
[1729593079040,0.0022334,67181.0,67180.0,0.074467]
[1729593079838,0.0022334,67181.0,67180.0,0.075467]
[1729593080240,0.0032334,67181.0,67180.0,0.076467]
[1729593081533,0.2176994,67181.0,67180.0,0.002]
[1729593093651,0.074477,67171.0,67170.0,0.01476287]
[1729593093845,0.214477,67171.0,67168.0,0.074481]
[1729593094154,0.074479,67170.0,67168.0,0.074481]
[1729593094453,0.074481,67168.0,67167.0,0.37614155]
[1729593095153,0.215478,67171.0,67167.0,0.37614155]
[1729593095346,0.07448,67169.0,67167.0,0.37614155]
[1729593095546,0.074481,67168.0,67167.0,0.3618]
[1729593095950,0.001,67168.0,67167.0,0.437281]
[1729593096156,0.001,67168.0,67167.0,0.3628]
[1729593096358,0.075481,67168.0,67167.0,0.3628]
[1729593096554,0.001,67168.0,67167.0,0.437282]
[1729593097852,0.001,67168.0,67167.0,0.577282]
[1729593098255,0.002,67168.0,67167.0,0.577282]
[1729593100360,0.076481,67168.0,67167.0,0.002]
[1729593102161,0.0919194,67168.0,67167.0,0.002]
[1729593103659,0.076481,67168.0,67167.0,0.002]
[1729593104657,0.002,67168.0,67167.0,0.076482]
[1729593108057,0.002,67168.0,67167.0,0.437282]
[1729593111672,0.074468,67180.0,67177.0,0.074471]
[1729593111872,0.074468,67180.0,67179.0,0.14]
[1729593113272,0.075468,67180.0,67179.0,0.141]
[1729593113468,0.075468,67180.0,67179.0,0.001]
[1729593114467,0.075468,67180.0,67179.0,0.002]
[1729593115171,0.215468,67180.0,67179.0,0.002]
[1729593115777,0.075468,67180.0,67179.0,0.002]
[1729593116076,0.215468,67180.0,67179.0,0.06092774]
[1729593116268,0.215468,67180.0,67179.0,0.002]
[1729593119069,0.075468,67180.0,67179.0,0.002]
[1729593123277,0.001,67180.0,67179.0,0.002]
[1729593123479,0.001,67180.0,67179.0,0.076468]
[1729593124378,0.001,67180.0,67179.0,0.15021124]
[1729593124571,0.001,67180.0,67179.0,0.076468]
[1729593125081,0.001,67180.0,67179.0,0.216468]
[1729593126383,0.001,67180.0,67179.0,0.663028]
[1729593126576,0.0104,67183.0,67182.0,0.074465]
[1729593126780,0.0104,67183.0,67182.0,0.575265]
[1729593127582,0.3608,67192.0,67182.0,0.575265]
[1729593127583,0.074453,67193.0,67188.0,0.074458]
[1729593127784,0.074453,67193.0,67189.0,0.13325535]
[1729593127983,0.074453,67193.0,67190.0,0.05879835]
[1729593128183,0.074448,67198.0,67190.0,0.074456]
[1729593128487,0.074448,67198.0,67189.0,0.074457]
[1729593128488,0.074454,67193.0,67189.0,0.074457]
[1729593128875,0.074454,67193.0,67190.0,0.074456]
[1729593129084,0.074454,67193.0,67188.0,0.50168]
[1729593129389,0.14,67198.0,67188.0,0.214458]
[1729593129390,0.081955,67191.0,67188.0,0.214458]
[1729593129575,0.0085,67191.0,67190.0,0.001]
[1729593130378,0.0085,67191.0,67189.0,0.075457]
[1729593130573,0.0085,67191.0,67189.0,0.001]
[1729593130780,0.0085,67191.0,67190.0,0.074456]
[1729593132590,0.0085,67191.0,67190.0,0.075456]
[1729593132976,0.0085,67191.0,67190.0,0.076456]
[1729593135682,0.0085,67191.0,67190.0,0.13525435]
[1729593135883,0.0085,67191.0,67190.0,0.15013191]
[1729593138692,0.0085,67191.0,67190.0,0.15002723]
[1729593139189,0.0085,67191.0,67190.0,0.01687756]
[1729593140089,0.222955,67191.0,67190.0,0.07557991]
[1729593140290,0.222955,67191.0,67190.0,0.01687756]
[1729593141388,0.222955,67191.0,67190.0,0.07557991]
[1729593142295,0.222955,67191.0,67190.0,0.01687756]
[1729593142789,0.222955,67191.0,67190.0,0.002]
[1729593145207,0.074471,67177.0,67175.0,0.14]
[1729593146203,0.074471,67177.0,67176.0,0.37569827]
[1729593146397,0.075471,67177.0,67176.0,0.37569827]
[1729593148098,0.076471,67177.0,67176.0,0.37569827]
[1729593148698,0.437271,67177.0,67168.0,0.14]
[1729593148891,0.074481,67168.0,67165.0,0.14]
[1729593149599,0.14,67172.0,67165.0,0.14]
[1729593149798,0.439111,67177.0,67164.0,0.37586935]
[1729593149799,0.074484,67165.0,67164.0,0.37586935]
[1729593150101,0.074484,67165.0,67162.0,0.14223297]
[1729593150102,0.074486,67163.0,67162.0,0.00223297]
[1729593150292,0.435286,67163.0,67162.0,0.00223297]
[1729593150601,0.435286,67163.0,67155.0,0.07349794]
[1729593150602,0.074492,67158.0,67155.0,0.07349794]
[1729593150792,0.074492,67158.0,67157.0,0.14]
[1729593151097,0.074492,67158.0,67157.0,0.19882011]
[1729593151302,0.074492,67158.0,67157.0,0.14]
[1729593151485,0.074492,67158.0,67157.0,0.19882011]
[1729593152097,0.075492,67158.0,67157.0,0.19882011]
[1729593152400,0.075492,67158.0,67157.0,0.14]
[1729593153488,0.001,67158.0,67155.0,0.05882011]
[1729593153688,0.141,67158.0,67150.0,0.05882011]
[1729593153894,0.141,67158.0,67148.0,0.05882011]
[1729593153895,0.074502,67149.0,67148.0,0.05882011]
[1729593154190,0.50176,67151.0,67146.0,0.14]
[1729593154391,0.074504,67148.0,67146.0,0.14]
[1729593154594,0.36164,67151.0,67146.0,0.14]
[1729593154887,0.074501,67150.0,67148.0,0.14]
[1729593155195,0.074502,67149.0,67148.0,0.14]
[1729593156195,0.074502,67149.0,67148.0,0.148]
[1729593157092,0.074502,67149.0,67148.0,0.008]
[1729593157093,0.214502,67149.0,67148.0,0.008]
[1729593157695,0.214502,67149.0,67148.0,0.015]
[1729593158013,0.074502,67149.0,67148.0,0.015]
[1729593158695,0.076502,67149.0,67148.0,0.008]
[1729593159401,0.074504,67147.0,67146.0,0.14]
[1729593160903,0.075504,67147.0,67146.0,0.141]
[1729593161502,0.075504,67147.0,67146.0,0.142]
[1729593161806,0.438304,67147.0,67146.0,0.142]
[1729593162000,0.077504,67147.0,67146.0,0.002]
[1729593162709,0.438304,67147.0,67146.0,0.002]
[1729593183318,0.438304,67147.0,67146.0,0.04614401]
[1729593183626,0.438304,67147.0,67146.0,0.002]
[1729593184819,0.885104,67147.0,67146.0,0.002]
[1729593185125,0.438304,67147.0,67146.0,0.002]
[1729593185720,1.245904,67147.0,67141.0,0.04414401]
[1729593185915,0.14,67142.0,67141.0,0.04414401]
[1729593186420,0.074511,67141.0,67140.0,0.0138]
[1729593187226,0.074511,67141.0,67140.0,0.05794401]
[1729593188233,0.074511,67141.0,67140.0,0.0138]
[1729593189122,0.214511,67141.0,67140.0,0.0138]
[1729593189328,0.215511,67141.0,67140.0,0.0138]
[1729593189528,0.216511,67141.0,67140.0,0.0138]
[1729593189824,0.663351,67141.0,67140.0,0.0138]
[1729593190823,0.523351,67141.0,67140.0,0.0138]
[1729593192025,0.644391,67141.0,67140.0,0.0138]
[1729593192733,0.65862976,67141.0,67140.0,0.0138]
[1729593192920,0.66262976,67141.0,67140.0,0.0138]
[1729593193226,0.21678976,67141.0,67140.0,0.0148]
[1729593193825,0.35678976,67141.0,67140.0,0.0148]
[1729593194028,0.074515,67137.0,67136.0,0.0443503]
[1729593194326,0.074524,67129.0,67128.0,0.05882011]
[1729593195119,0.074525,67128.0,67127.0,0.05882011]
[1729593195821,0.074531,67123.0,67122.0,0.02345109]
[1729593196022,0.074531,67123.0,67122.0,0.03556917]
[1729593196225,0.074531,67123.0,67122.0,0.11010117]
[1729593197121,0.074531,67123.0,67122.0,0.03556917]
[1729593197423,0.074531,67123.0,67122.0,0.02345109]
[1729593198224,0.074531,67123.0,67122.0,0.03445109]
[1729593198823,0.074531,67123.0,67122.0,0.04545109]
[1729593199228,0.074531,67123.0,67122.0,0.03]
[1729593199427,0.435331,67123.0,67122.0,0.03]
[1729593200222,0.435331,67123.0,67122.0,0.00890432]
[1729593201422,0.3608,67123.0,67120.0,0.0104]
[1729593201628,0.436331,67123.0,67122.0,0.017]
[1729593202322,0.576331,67123.0,67122.0,0.017]
[1729593202522,0.436331,67123.0,67122.0,0.017]
[1729593202722,0.074531,67123.0,67122.0,0.009]
[1729593202925,0.075531,67123.0,67122.0,0.009]
[1729593203437,0.001,67123.0,67122.0,0.14258905]
[1729593203729,0.002,67123.0,67122.0,0.074532]
[1729593203936,0.002,67123.0,67122.0,0.15662351]
[1729593204134,0.002,67123.0,67122.0,0.08999827]
[1729593204437,0.002,67123.0,67122.0,0.17207488]
[1729593204632,0.001,67123.0,67122.0,0.17207488]
[1729593204933,0.002,67123.0,67122.0,0.18007488]
[1729593205233,0.002,67123.0,67122.0,0.19373532]
[1729593205433,0.076531,67123.0,67122.0,0.11920332]
[1729593205748,0.002,67123.0,67122.0,0.19373532]
[1729593207437,0.3608,67132.0,67128.0,0.074525]
[1729593207738,0.3608,67132.0,67130.0,0.14]
[1729593207928,0.3608,67132.0,67128.0,0.14833357]
[1729593208129,0.074522,67131.0,67128.0,0.14833357]
[1729593208737,0.074522,67131.0,67128.0,0.074525]
[1729593208936,0.074519,67134.0,67131.0,0.074522]
[1729593209237,0.14,67142.0,67133.0,0.214519]
[1729593209437,0.14,67142.0,67137.0,0.05904643]
[1729593209735,0.07674791,67139.0,67138.0,0.05904643]
[1729593209940,0.07674791,67139.0,67134.0,0.074517]
[1729593210243,0.074516,67137.0,67134.0,0.074517]
[1729593211029,0.074517,67135.0,67133.0,0.21780857]
[1729593211239,0.074517,67135.0,67133.0,0.21380857]
[1729593211440,0.074517,67135.0,67134.0,0.004]
[1729593211643,0.074517,67135.0,67134.0,0.006]
[1729593212131,0.074517,67135.0,67134.0,0.004]
[1729593212639,0.074514,67138.0,67134.0,0.078518]
[1729593212837,0.074514,67138.0,67134.0,0.080518]
[1729593213229,0.14223491,67139.0,67134.0,0.080518]
[1729593213436,0.074516,67136.0,67134.0,0.076518]
[1729593213650,0.074516,67136.0,67134.0,0.15032657]
[1729593213942,0.074516,67136.0,67134.0,0.076518]
[1729593214140,0.36164,67139.0,67134.0,0.002]
[1729593214441,0.3608,67139.0,67135.0,0.15545809]
[1729593214735,0.14,67138.0,67134.0,0.07880857]
[1729593214939,0.074517,67135.0,67134.0,0.07880857]
[1729593215141,0.214517,67135.0,67134.0,0.005]
[1729593215551,0.074517,67135.0,67134.0,0.003]
[1729593216136,0.14,67138.0,67130.0,0.07380857]
[1729593216335,0.14,67138.0,67137.0,0.05911441]
[1729593217147,0.214514,67138.0,67137.0,0.05911441]
[1729593217942,0.074517,67135.0,67134.0,0.001]
[1729593218138,0.12890258,67135.0,67134.0,0.001]
[1729593218645,0.12890395,67135.0,67134.0,0.001]
[1729593219049,0.05438695,67135.0,67130.0,0.074523]
[1729593219243,0.074521,67132.0,67130.0,0.074523]
[1729593219444,0.12890895,67131.0,67130.0,0.074523]
[1729593219646,0.12890895,67131.0,67130.0,0.0791832]
[1729593219852,0.12890895,67131.0,67130.0,0.074523]
[1729593220052,0.12890895,67131.0,67130.0,0.0791832]
[1729593220942,0.12890895,67131.0,67130.0,0.0831832]
[1729593221345,0.12890895,67131.0,67130.0,0.0861832]
[1729593221852,0.15506162,67143.0,67130.0,0.0116602]
[1729593222038,0.19225086,67142.0,67141.0,0.14]
[1729593222239,0.14,67149.0,67141.0,0.14]
[1729593222240,0.074502,67149.0,67141.0,0.14]
[1729593222438,0.074502,67149.0,67148.0,0.14]
[1729593222651,0.3608,67150.0,67148.0,0.14]
[1729593222848,0.3608,67150.0,67149.0,0.074502]
[1729593223649,0.3608,67150.0,67148.0,0.14]
[1729593223948,0.435301,67150.0,67148.0,0.14]
[1729593224842,0.446301,67150.0,67148.0,0.15638038]
[1729593226047,0.452301,67150.0,67149.0,0.001]
[1729593226645,0.091501,67150.0,67149.0,0.001]
[1729593226842,0.091501,67150.0,67148.0,0.23088338]
[1729593226843,0.085501,67150.0,67148.0,0.23088338]
[1729593227041,0.091501,67150.0,67148.0,0.23188338]
[1729593227553,0.091501,67150.0,67149.0,0.001]
[1729593227554,0.092501,67150.0,67149.0,0.001]
[1729593227856,0.018,67150.0,67149.0,0.08016073]
[1729593228047,0.017,67150.0,67149.0,0.07916073]
[1729593228243,0.017,67150.0,67149.0,0.08016073]
[1729593228647,0.017,67150.0,67149.0,0.52792073]
[1729593228648,0.018,67150.0,67149.0,0.52792073]
[1729593228858,0.08998161,67165.0,67150.0,0.074501]
[1729593229054,0.074485,67165.0,67164.0,0.14]
[1729593230160,0.080485,67165.0,67164.0,0.14]
[1729593230345,0.146,67165.0,67157.0,0.14]
[1729593230554,0.222484,67165.0,67164.0,0.001]
[1729593230748,0.216484,67165.0,67164.0,0.001]
[1729593231053,0.222484,67165.0,67164.0,0.002]
[1729593232355,0.082484,67165.0,67164.0,0.002]
[1729593232554,0.082484,67165.0,67164.0,0.076485]
[1729593233259,0.14740888,67165.0,67164.0,0.076485]
[1729593233556,0.082484,67165.0,67164.0,0.076485]
[1729593234262,0.082484,67165.0,67164.0,0.002]
[1729593234760,0.008,67165.0,67164.0,0.076485]
[1729593238059,0.008,67165.0,67164.0,0.523165]
[1729593238562,0.008,67165.0,67164.0,0.52782235]
[1729593240962,0.008,67165.0,67164.0,0.08114241]
[1729593245466,0.008,67165.0,67164.0,0.076485]
[1729593246863,0.008,67165.0,67164.0,0.002]
[1729593246864,0.082484,67165.0,67164.0,0.002]
[1729593247066,0.082484,67165.0,67164.0,0.076485]
[1729593247067,0.008,67165.0,67164.0,0.076485]
[1729593253485,0.008,67165.0,67164.0,0.08114274]
[1729593254083,0.008,67165.0,67164.0,0.076485]
[1729593254286,0.3608,67174.0,67164.0,0.523165]
[1729593254485,0.3608,67174.0,67173.0,0.214475]
[1729593254681,0.00223388,67179.0,67173.0,0.14]
[1729593254888,0.00223388,67179.0,67178.0,0.21447]
[1729593256190,0.14298651,67179.0,67178.0,0.21447]
[1729593256389,0.14498651,67179.0,67178.0,0.21547]
[1729593256588,0.23350811,67179.0,67178.0,0.21547]
[1729593256882,0.30844876,67179.0,67178.0,0.21647]
[1729593257077,0.14498651,67179.0,67178.0,0.21647]
[1729593259492,0.14498651,67179.0,67178.0,0.23189091]
[1729593260087,0.14498651,67179.0,67178.0,0.23654777]
[1729593260485,0.13895386,67179.0,67178.0,0.23189091]
[1729593261390,0.13695386,67179.0,67178.0,0.23189091]
[1729593262282,0.13471998,67179.0,67178.0,0.23189091]
[1729593262987,0.074462,67185.0,67178.0,0.15742091]
[1729593263180,0.074462,67185.0,67183.0,0.14]
[1729593263585,0.074458,67189.0,67184.0,0.074463]
[1729593264093,0.074458,67189.0,67186.0,0.14]
[1729593265289,0.074464,67184.0,67181.0,0.074466]
[1729593265594,0.074463,67184.0,67182.0,0.14]
[1729593267486,0.0075,67191.0,67178.0,0.01542091]
[1729593267487,0.074468,67179.0,67178.0,0.01542091]
[1729593267687,0.214468,67179.0,67176.0,0.36659879]
[1729593267887,0.14,67179.0,67176.0,0.29212779]
[1729593268094,0.074471,67177.0,67176.0,0.29212779]
[1729593268592,0.074471,67177.0,67176.0,0.29678463]
[1729593269386,0.074471,67177.0,67176.0,0.29778463]
[1729593269696,0.435271,67177.0,67176.0,0.001]
[1729593270387,0.435271,67177.0,67176.0,0.002]
[1729593271095,0.435271,67177.0,67163.0,0.5008]
[1729593271096,0.4911266,67177.0,67163.0,0.3608]
[1729593271395,0.074485,67164.0,67163.0,0.5008]
[1729593271602,0.06093706,67164.0,67163.0,0.50545762]
[1729593271787,0.14,67172.0,67163.0,0.50545762]
[1729593272099,0.074482,67167.0,67166.0,0.14]
[1729593272300,0.1353501,67167.0,67166.0,0.14]
[1729593272490,0.1353501,67167.0,67166.0,0.14465765]
[1729593273495,0.1353501,67167.0,67166.0,0.14565765]
[1729593273694,0.1353501,67167.0,67166.0,0.00565765]
[1729593274199,0.1353501,67167.0,67166.0,0.001]
[1729593274790,0.1353501,67167.0,67166.0,0.002]
[1729593274791,0.1373501,67167.0,67166.0,0.002]
[1729593274995,0.13713915,67167.0,67166.0,0.002]
[1729593275501,0.13699335,67167.0,67166.0,0.002]
[1729593276899,0.074492,67159.0,67150.0,0.0745]
[1729593277102,0.26870511,67158.0,67154.0,0.37627685]
[1729593277300,0.074494,67156.0,67154.0,0.37627685]
[1729593277494,0.13490048,67155.0,67154.0,0.37627685]
[1729593277690,0.13490048,67155.0,67154.0,0.3608]
[1729593277691,0.20313974,67155.0,67154.0,0.3608]
[1729593278097,0.074495,67155.0,67154.0,0.3608]
[1729593278297,0.074495,67155.0,67154.0,0.3638]
[1729593278701,0.074495,67155.0,67154.0,0.42276713]
[1729593279005,0.074495,67155.0,67154.0,0.42676713]
[1729593279198,0.214495,67155.0,67154.0,0.42676713]
[1729593279504,0.214495,67155.0,67154.0,0.007]
[1729593280897,0.214495,67155.0,67154.0,0.004]
[1729593281901,0.14,67155.0,67147.0,0.19896713]
[1729593282098,0.214495,67155.0,67154.0,0.001]
[1729593283103,0.214495,67155.0,67144.0,0.14]
[1729593283104,0.214495,67155.0,67147.0,0.008]
[1729593283305,0.435303,67148.0,67147.0,0.008]
[1729593284397,0.435303,67148.0,67147.0,0.015]
[1729593284902,0.435303,67148.0,67147.0,0.147]
[1729593285806,0.435303,67148.0,67147.0,0.155]
[1729593288699,0.3608,67156.0,67147.0,0.155]
[1729593289008,0.3608,67156.0,67155.0,0.14]
[1729593289009,0.435294,67156.0,67155.0,0.14]
[1729593289194,0.074496,67155.0,67152.0,0.14]
[1729593289394,0.3608,67156.0,67147.0,0.015]
[1729593289606,0.074499,67152.0,67150.0,0.14]
[1729593290394,0.3618,67156.0,67150.0,0.14]
[1729593290601,0.074495,67155.0,67154.0,0.14]
[1729593293210,0.074495,67155.0,67154.0,0.215496]
[1729593294002,0.074495,67155.0,67154.0,0.23075979]
[1729593294201,0.074495,67155.0,67154.0,0.23175979]
[1729593294608,0.074495,67155.0,67154.0,0.23075979]
[1729593295209,0.074495,67155.0,67154.0,0.23175979]
[1729593295718,0.00223414,67162.0,67154.0,0.15726379]
[1729593296014,0.00223414,67162.0,67161.0,0.214488]
[1729593296015,0.07672214,67162.0,67161.0,0.214488]
[1729593297408,0.07672214,67162.0,67161.0,0.27345513]
[1729593297610,0.07672214,67162.0,67161.0,0.27645513]
[1729593298205,0.07672214,67162.0,67161.0,0.217488]
[1729593298914,0.00223414,67162.0,67161.0,0.217488]
[1729593299415,0.00223414,67162.0,67161.0,0.23267429]
[1729593299614,0.3608,67163.0,67161.0,0.15518629]
[1729593299813,0.002,67162.0,67161.0,0.22967429]
[1729593300210,0.3608,67170.0,67161.0,0.38698613]
[1729593300410,0.3608,67170.0,67169.0,0.21448]
[1729593300817,0.3608,67170.0,67169.0,0.2191377]
[1729593301418,0.3628,67170.0,67169.0,0.2201377]
[1729593302319,0.3628,67170.0,67169.0,0.23534519]
[1729593302524,0.3628,67170.0,67169.0,0.23634519]
[1729593302721,0.3628,67170.0,67169.0,0.31015376]
[1729593303016,0.002,67170.0,67169.0,0.16186519]
[1729593303212,0.002,67170.0,67169.0,0.15720749]
[1729593303412,0.002,67170.0,67169.0,0.16186501]
[1729593304217,0.002,67170.0,67169.0,0.2355594]
[1729593304717,0.002,67170.0,67169.0,0.16186501]
[1729593305124,0.076478,67170.0,67169.0,0.16186501]
[1729593305719,0.076478,67170.0,67169.0,0.15720749]
[1729593312237,0.076478,67170.0,67169.0,0.002]
[1729593312527,0.166478,67170.0,67169.0,0.002]
[1729593312731,0.613118,67170.0,67169.0,0.002]
[1729593313324,0.074493,67157.0,67156.0,0.09]
[1729593313530,0.074496,67154.0,67153.0,0.09]
[1729593313727,0.164496,67154.0,67153.0,0.09]
[1729593313924,0.164496,67154.0,67152.0,0.3761021]
[1729593314130,0.074497,67153.0,67152.0,0.3761021]
[1729593315534,0.074497,67153.0,67152.0,0.3841021]
[1729593316135,0.074497,67153.0,67152.0,0.46479649]
[1729593316333,0.074497,67153.0,67152.0,0.3911021]
[1729593316636,0.074497,67153.0,67152.0,0.46479649]
[1729593316833,0.3608,67158.0,67152.0,0.46479649]
[1729593317136,0.435292,67158.0,67157.0,0.0589548]
[1729593317536,0.3608,67158.0,67154.0,0.14]
[1729593317840,0.435292,67158.0,67157.0,0.05896597]
[1729593318040,0.575292,67158.0,67152.0,0.14766036]
[1729593318227,0.074494,67156.0,67155.0,0.04423468]
[1729593318431,0.074496,67154.0,67153.0,0.04423468]
[1729593318641,0.074497,67153.0,67152.0,0.015]
[1729593318942,0.074497,67153.0,67152.0,0.007]
[1729593319331,0.074498,67152.0,67151.0,0.04423468]
[1729593320640,0.074498,67152.0,67151.0,0.003]
[1729593322936,0.08981445,67152.0,67151.0,0.003]
[1729593323642,0.074498,67152.0,67151.0,0.003]
[1729593324639,0.074498,67152.0,67151.0,0.007]
[1729593326147,0.074498,67152.0,67151.0,0.05119329]
[1729593327443,0.074498,67152.0,67151.0,0.007]
[1729593328251,0.074498,67152.0,67151.0,0.05119329]
[1729593332953,0.074498,67152.0,67151.0,0.007]
[1729593336255,0.164498,67152.0,67151.0,0.007]
[1729593338155,0.164498,67152.0,67151.0,0.05119225]
[1729593338556,0.164498,67152.0,67151.0,0.007]